[Event "FIDE Chesscom Grand Swiss 2019"]
[Site "Douglas-Isle of Man"]
[Date "2019.10.19"]
[Round "9.25"]
[White "Adly, Ahmed"]
[Black "Stefanova, Antoaneta"]
[Result "1-0"]
[ECO "D78"]
[WhiteElo "2636"]
[BlackElo "2479"]
[Annotator "ChessBase"]
[PlyCount "121"]
[EventDate "2019.10.10"]
[EventType "swiss"]
[EventCountry "GBR"]
[SourceTitle "playchess.com"]
[Source "ChessBase"]
[SourceQuality "1"]
[TimeControl "40/6000+30:20/3000+30:900+30"]

1. d4 {[%emt 0:00:00]} Nf6 {[%emt 0:00:00]} 2. c4 {[%emt 0:00:00]} g6 {[%emt 0:00:04]} 3. g3 {[%emt 0:00:16]} c6 {[%emt 0:01:05]} 4. Bg2 {[%emt 0:00:03]} d5 {[%emt 0:00:04]} 5. Nf3 {[%emt 0:00:04]} Bg7 {[%emt 0:01:34]} 6. O-O {[%emt 0:00:04]} O-O {[%emt 0:00:14]} 7. a4 {[%emt 0:00:02]} a5 {[%emt 0:12:19]} 8. Na3 {[%emt 0:00:16]} Be6 {[%emt 0:10:08]} 9. Bf4 {[%emt 0:06:09]} h6 {[%emt 0:04:08]} 10. Qb3 {[%emt 0:02:34]} Ra7 {[%emt 0:06:06]} 11. Rfc1 {[%emt 0:03:04]} Nbd7 {[%emt 0:03:57]} 12. Ne5 {[%emt 0:05:56]} dxc4 {[%emt 0:08:14]} 13. Qd1 {[%emt 0:07:36]} Nd5 {[%emt 0:02:19]} 14. Naxc4 {[%emt 0:00:28]} Nxe5 {[%emt 0:06:11]} 15. Bxe5 {[%emt 0:01:01]} f6 {[%emt 0:00:45]} 16. Bf4 {[%emt 0:00:03]} g5 {[%emt 0:08:24]} 17. Bd2 {[%emt 0:01:03]} f5 {[%emt 0:01:25]} 18. Ra3 {[%emt 0:02:25]} f4 {[%emt 0:04:54]} 19. Be1 {[%emt 0:01:56]} Nb4 {[%emt 0:07:49]} 20. Bxb4 {[%emt 0:08:38]} axb4 {[%emt 0:00:24]} 21. Rd3 {[%emt 0:00:02]} Qe8 {[%emt 0:07:11]} 22. b3 {[%emt 0:07:23]} Qf7 {[%emt 0:01:43]} 23. d5 {[%emt 0:01:46]} cxd5 {[%emt 0:04:21]} 24. Bxd5 {[%emt 0:00:03]} Bxd5 {[%emt 0:04:00]} 25. Rxd5 {[%emt 0:00:03]} fxg3 {[%emt 0:00:04]} 26. fxg3 {[%emt 0:00:05]} Ra6 {[%emt 0:02:26]} 27. Rd8 {[%emt 0:04:39]} Qf2+ {[%emt 0:03:10]} 28. Kh1 {[%emt 0:00:02]} Re6 {[%emt 0:01:40]} 29. Rxf8+ {[%emt 0:00:36]} Bxf8 {[%emt 0:03:46]} 30. e3 {[%emt 0:00:34]} Rf6 {[%emt 0:02:21]} 31. Qd5+ {[%emt 0:02:32]} e6 {[%emt 0:00:05]} 32. Qg2 {[%emt 0:00:02]} Bc5 {[%emt 0:00:47]} 33. Rd1 {[%emt 0:00:02]} Bxe3 {[%emt 0:01:46]} 34. Rd8+ {[%emt 0:03:40]} Rf8 {[%emt 0:01:43]} 35. Rxf8+ {[%emt 0:00:14]} Kxf8 {[%emt 0:00:05]} 36. Qxf2+ {[%emt 0:00:03]} Bxf2 {[%emt 0:00:05]} 37. Kg2 {[%emt 0:00:08]} Bc5 {[%emt 0:00:36]} 38. g4 {[%emt 0:00:06]} Kg7 {[%emt 0:00:45]} 39. Kf3 {[%emt 0:00:08]} Kf6 {[%emt 0:00:42]} 40. Ke4 {[%emt 0:00:20]} Ke7 {[%emt 0:01:36]} 41. Na5 {[%emt 0:50:08]} b6 {[%emt 0:17:07]} 42. Nc6+ {[%emt 0:00:00]} Kd6 {[%emt 0:03:02]} 43. Ne5 {[%emt 0:00:00]} Ke7 {[%emt 0:04:04]} 44. h3 {[%emt 0:00:00]} Bd6 {[%emt 0:11:28]} 45. Nd3 {[%emt 0:00:00]} Kf6 {[%emt 0:08:06]} 46. Kd4 {[%emt 0:00:00]} h5 {[%emt 0:02:11]} 47. Kc4 {[%emt 0:00:00]} hxg4 {[%emt 0:03:57]} 48. hxg4 {[%emt 0:00:00]} Bg3 {[%emt 0:00:20]} 49. Kd4 {[%emt 0:00:00]} Bd6 {[%emt 0:00:14]} 50. Ke4 {[%emt 0:00:00]} Ke7 {[%emt 0:01:32]} 51. Ke3 {[%emt 0:00:00]} Kf7 {[%emt 0:01:00]} 52. Ke4 {[%emt 0:00:00]} Ke7 {[%emt 0:00:04]} 53. Ne5 {[%emt 0:00:00]} Bc7 {[%emt 0:02:39]} 54. Nc6+ {[%emt 0:00:00]} Kd6 {[%emt 0:00:28]} 55. Nxb4 {[%emt 0:00:00]} Bd8 {[%emt 0:00:34]} 56. Kd4 {[%emt 0:00:00]} Bf6+ {[%emt 0:00:07]} 57. Kc4 {[%emt 0:00:00]} Ke5 {[%emt 0:00:31]} 58. Nc6+ {[%emt 0:00:00]} Kf4 {[%emt 0:00:27]} 59. b4 {[%emt 0:00:00]} e5 {[%emt 0:00:15]} 60. a5 {[%emt 0:00:00]} e4 {[%emt 0:00:58]} 61. axb6 {[%emt 0:00:00]} 1-0

[Event "FIDE Chesscom Grand Swiss 2019"]
[Site "Douglas-Isle of Man"]
[Date "2019.10.19"]
[Round "9.27"]
[White "Parligras, Mircea-Emilian"]
[Black "Munguntuul, Batkhuyag"]
[Result "1-0"]
[ECO "B47"]
[WhiteElo "2629"]
[BlackElo "2421"]
[Annotator "ChessBase"]
[PlyCount "101"]
[EventDate "2019.10.10"]
[EventType "swiss"]
[EventCountry "GBR"]
[SourceTitle "playchess.com"]
[Source "ChessBase"]
[SourceQuality "1"]
[TimeControl "40/6000+30:20/3000+30:900+30"]

1. e4 {[%emt 0:00:00]} c5 {[%emt 0:00:00]} 2. Nf3 {[%emt 0:00:00]} e6 {[%emt 0:00:00]} 3. d4 {[%emt 0:00:11]} cxd4 {[%emt 0:00:00]} 4. Nxd4 {[%emt 0:00:07]} Nc6 {[%emt 0:00:00]} 5. Nc3 {[%emt 0:00:14]} Qc7 {[%emt 0:00:00]} 6. Qd3 {[%emt 0:00:43]} Nf6 {[%emt 0:19:23]} 7. Ndb5 {[%emt 0:00:17]} Qb8 {[%emt 0:00:48]} 8. Qg3 {[%emt 0:00:10]} d6 {[%emt 0:01:35]} 9. Be3 {[%emt 0:00:08]} a6 {[%emt 0:13:07]} 10. Nd4 {[%emt 0:00:14]} Bd7 {[%emt 0:10:08]} 11. f4 {[%emt 0:01:27]} Be7 {[%emt 0:06:15]} 12. Bd3 {[%emt 0:05:14]} b5 {[%emt 0:05:08]} 13. O-O-O {[%emt 0:12:39]} O-O {[%emt 0:06:02]} 14. Kb1 {[%emt 0:05:05]} Qb7 {[%emt 0:07:19]} 15. e5 {[%emt 0:04:52]} Ne8 {[%emt 0:12:04]} 16. h4 {[%emt 0:17:39]} f5 {[%emt 0:02:45]} 17. exf6 {[%emt 0:02:46]} Bxf6 {[%emt 0:00:02]} 18. Nce2 {[%emt 0:01:49]} Nb4 {[%emt 0:00:50]} 19. h5 {[%emt 0:04:20]} Nxd3 {[%emt 0:02:23]} 20. Rxd3 {[%emt 0:00:28]} b4 {[%emt 0:01:41]} 21. h6 {[%emt 0:02:04]} g6 {[%emt 0:00:20]} 22. Re1 {[%emt 0:07:11]} a5 {[%emt 0:01:45]} 23. Qf3 {[%emt 0:13:03]} Qxf3 {[%emt 0:02:27]} 24. Nxf3 {[%emt 0:00:05]} Ra6 {[%emt 0:00:24]} 25. Bd4 {[%emt 0:02:08]} Be7 {[%emt 0:01:10]} 26. g3 {[%emt 0:12:32]} a4 {[%emt 0:03:23]} 27. Nc1 {[%emt 0:05:01]} Ra5 {[%emt 0:00:48]} 28. Rde3 {[%emt 0:01:22]} Rh5 {[%emt 0:03:03]} 29. b3 {[%emt 0:01:02]} Rxh6 {[%emt 0:02:33]} 30. Nd3 {[%emt 0:00:23]} axb3 {[%emt 0:00:48]} 31. axb3 {[%emt 0:00:18]} Nc7 {[%emt 0:01:14]} 32. Nxb4 {[%emt 0:00:22]} Rb8 {[%emt 0:00:11]} 33. Nd3 {[%emt 0:00:14]} Rh5 {[%emt 0:04:20]} 34. Bb2 {[%emt 0:01:49]} Ra5 {[%emt 0:00:58]} 35. Nf2 {[%emt 0:01:34]} Nd5 {[%emt 0:00:49]} 36. Rd3 {[%emt 0:01:16]} Rba8 {[%emt 0:02:14]} 37. Ne4 {[%emt 0:01:18]} h6 {[%emt 0:01:28]} 38. Rh1 {[%emt 0:01:50]} Nb4 {[%emt 0:00:19]} 39. Rd4 {[%emt 0:03:09]} d5 {[%emt 0:00:22]} 40. Rxh6 {[%emt 0:03:16]} Nc6 {[%emt 0:00:01]} 41. Neg5 {[%emt 0:02:40]} Be8 {[%emt 0:21:07]} 42. Rxd5 {[%emt 0:08:57]} e5 {[%emt 0:01:40]} 43. Rxa5 {[%emt 0:07:43]} Rxa5 {[%emt 0:00:03]} 44. fxe5 {[%emt 0:00:22]} Bxg5 {[%emt 0:04:53]} 45. Nxg5 {[%emt 0:00:05]} Nxe5 {[%emt 0:00:09]} 46. Rh7 {[%emt 0:08:59]} Nf7 {[%emt 0:03:16]} 47. Rg7+ {[%emt 0:00:10]} Kf8 {[%emt 0:00:02]} 48. Nh7+ {[%emt 0:01:02]} Ke7 {[%emt 0:00:02]} 49. Rxg6 {[%emt 0:00:05]} Rh5 {[%emt 0:03:04]} 50. Ba3+ {[%emt 0:00:49]} Kd8 {[%emt 0:00:02]} 51. Nf6 {[%emt 0:00:11]} 1-0

[Event "FIDE Chesscom Grand Swiss 2019"]
[Site "Douglas-Isle of Man"]
[Date "2019.10.19"]
[Round "9.28"]
[White "Akobian, Varuzhan"]
[Black "Ushenina, Anna"]
[Result "1-0"]
[ECO "E20"]
[WhiteElo "2625"]
[BlackElo "2431"]
[Annotator "ChessBase"]
[PlyCount "65"]
[EventDate "2019.10.10"]
[EventType "swiss"]
[EventCountry "GBR"]
[SourceTitle "playchess.com"]
[Source "ChessBase"]
[SourceQuality "1"]
[TimeControl "40/6000+30:20/3000+30:900+30"]

1. d4 {[%emt 0:00:35]} Nf6 {[%emt 0:00:00]} 2. c4 {[%emt 0:00:15]} e6 {[%emt 0:00:00]} 3. Nc3 {[%emt 0:00:27]} Bb4 {[%emt 0:00:01]} 4. g3 {[%emt 0:00:46]} c5 {[%emt 0:00:44]} 5. d5 {[%emt 0:00:39]} exd5 {[%emt 0:06:45]} 6. cxd5 {[%emt 0:04:21]} d6 {[%emt 0:00:34]} 7. Bg2 {[%emt 0:06:50]} O-O {[%emt 0:00:18]} 8. Nf3 {[%emt 0:02:53]} Ne4 {[%emt 0:02:42]} 9. Qc2 {[%emt 0:58:06]} Qf6 {[%emt 0:15:59]} 10. Bd2 {[%emt 0:00:00]} Nxd2 {[%emt 0:33:04]} 11. Nxd2 {[%emt 0:00:00]} Nd7 {[%emt 0:08:37]} 12. O-O {[%emt 0:00:00]} Qd8 {[%emt 0:04:11]} 13. e4 {[%emt 0:00:00]} a6 {[%emt 0:05:33]} 14. a4 {[%emt 0:00:00]} Rb8 {[%emt 0:01:32]} 15. Nc4 {[%emt 0:00:00]} Nb6 {[%emt 0:06:20]} 16. Ne3 {[%emt 0:00:00]} Nd7 {[%emt 0:00:17]} 17. f4 {[%emt 0:00:00]} b5 {[%emt 0:02:22]} 18. axb5 {[%emt 0:00:00]} axb5 {[%emt 0:00:01]} 19. Kh1 {[%emt 0:00:00]} Re8 {[%emt 0:02:10]} 20. g4 {[%emt 0:16:43]} g6 {[%emt 0:06:29]} 21. g5 {[%emt 0:00:30]} h5 {[%emt 0:02:52]} 22. h4 {[%emt 0:01:29]} c4 {[%emt 0:00:28]} 23. e5 {[%emt 0:00:27]} Qb6 {[%emt 0:08:49]} 24. Rae1 {[%emt 0:04:03]} dxe5 {[%emt 0:00:46]} 25. f5 {[%emt 0:00:19]} Bxc3 {[%emt 0:00:14]} 26. fxg6 {[%emt 0:02:43]} fxg6 {[%emt 0:00:24]} 27. Rf6 {[%emt 0:03:01]} Nxf6 {[%emt 0:00:02]} 28. Qxg6+ {[%emt 0:00:10]} Kf8 {[%emt 0:00:32]} 29. Rf1 {[%emt 0:02:08]} Ke7 {[%emt 0:01:23]} 30. Rxf6 {[%emt 0:02:41]} Qc5 {[%emt 0:00:01]} 31. Rf7+ {[%emt 0:01:15]} Kd8 {[%emt 0:00:05]} 32. Qf6+ {[%emt 0:00:08]} Re7 {[%emt 0:00:13]} 33. d6 {[%emt 0:00:17]} 1-0

[Event "FIDE Chesscom Grand Swiss 2019"]
[Site "Douglas-Isle of Man"]
[Date "2019.10.19"]
[Round "9.30"]
[White "Danielian, Elina"]
[Black "Iturrizaga Bonelli, Eduardo"]
[Result "1/2-1/2"]
[ECO "E53"]
[WhiteElo "2385"]
[BlackElo "2629"]
[Annotator "ChessBase"]
[PlyCount "80"]
[EventDate "2019.10.10"]
[EventType "swiss"]
[EventCountry "GBR"]
[SourceTitle "playchess.com"]
[Source "ChessBase"]
[SourceQuality "1"]
[TimeControl "40/6000+30:20/3000+30:900+30"]

1. d4 {[%emt 0:00:00]} Nf6 {[%emt 0:00:00]} 2. c4 {[%emt 0:00:00]} e6 {[%emt 0:00:00]} 3. Nc3 {[%emt 0:00:00]} Bb4 {[%emt 0:00:00]} 4. e3 {[%emt 0:00:41]} O-O {[%emt 0:00:12]} 5. Bd3 {[%emt 0:00:04]} d5 {[%emt 0:00:19]} 6. Nf3 {[%emt 0:00:05]} c5 {[%emt 0:00:14]} 7. O-O {[%emt 0:00:13]} b6 {[%emt 0:00:09]} 8. cxd5 {[%emt 0:11:15]} exd5 {[%emt 0:00:43]} 9. Ne5 {[%emt 0:00:47]} Bxc3 {[%emt 0:05:01]} 10. bxc3 {[%emt 0:00:06]} Ba6 {[%emt 0:00:04]} 11. dxc5 {[%emt 0:13:56]} Qc7 {[%emt 0:01:22]} 12. Nf3 {[%emt 0:11:48]} Qxc5 {[%emt 0:03:51]} 13. Bxa6 {[%emt 0:01:15]} Nxa6 {[%emt 0:00:08]} 14. Qd3 {[%emt 0:00:16]} Qc4 {[%emt 0:24:36]} 15. Qxc4 {[%emt 0:00:46]} dxc4 {[%emt 0:00:06]} 16. Ba3 {[%emt 0:00:09]} Rfd8 {[%emt 0:01:43]} 17. Nd4 {[%emt 0:00:36]} Ne4 {[%emt 0:01:30]} 18. Rfc1 {[%emt 0:03:52]} Rd7 {[%emt 0:02:57]} 19. Rc2 {[%emt 0:06:11]} Re8 {[%emt 0:00:46]} 20. Rb1 {[%emt 0:01:05]} g6 {[%emt 0:01:46]} 21. f3 {[%emt 0:03:22]} Nec5 {[%emt 0:08:01]} 22. Bxc5 {[%emt 0:07:14]} Nxc5 {[%emt 0:01:27]} 23. e4 {[%emt 0:00:07]} Kg7 {[%emt 0:10:09]} 24. h4 {[%emt 0:01:34]} Ne6 {[%emt 0:28:49]} 25. Rb4 {[%emt 0:06:22]} Nxd4 {[%emt 0:11:16]} 26. cxd4 {[%emt 0:00:03]} Rxd4 {[%emt 0:00:07]} 27. Rbxc4 {[%emt 0:00:14]} Red8 {[%emt 0:00:04]} 28. Rc7 {[%emt 0:03:35]} R8d7 {[%emt 0:00:04]} 29. Rxd7 {[%emt 0:04:50]} Rxd7 {[%emt 0:00:06]} 30. Kf2 {[%emt 0:00:10]} Rd4 {[%emt 0:00:08]} 31. Ke3 {[%emt 0:00:15]} Ra4 {[%emt 0:00:04]} 32. Kf4 {[%emt 0:05:58]} Ra5 {[%emt 0:01:35]} 33. Ke3 {[%emt 0:04:19]} Kf6 {[%emt 0:00:29]} 34. g4 {[%emt 0:07:14]} h6 {[%emt 0:00:57]} 35. f4 {[%emt 0:03:09]} Kg7 {[%emt 0:00:47]} 36. Kd4 {[%emt 0:08:00]} Ra3 {[%emt 0:01:00]} 37. g5 {[%emt 0:01:05]} Rh3 {[%emt 0:05:03]} 38. gxh6+ {[%emt 0:01:00]} Kxh6 {[%emt 0:00:05]} 39. Rc7 {[%emt 0:00:28]} Kg7 {[%emt 0:00:07]} 40. Rxa7 {[%emt 0:00:37]} Rxh4 {[%emt 0:00:08]} 1/2-1/2

[Event "FIDE Chesscom Grand Swiss 2019"]
[Site "Douglas-Isle of Man"]
[Date "2019.10.19"]
[Round "9.31"]
[White "Efimenko, Zahar"]
[Black "Lei, Tingjie"]
[Result "1/2-1/2"]
[ECO "A14"]
[WhiteElo "2604"]
[BlackElo "2469"]
[Annotator "ChessBase"]
[PlyCount "106"]
[EventDate "2019.10.10"]
[EventType "swiss"]
[EventCountry "GBR"]
[SourceTitle "playchess.com"]
[Source "ChessBase"]
[SourceQuality "1"]
[TimeControl "40/6000+30:20/3000+30:900+30"]

1. Nf3 {[%emt 0:00:07]} d5 {[%emt 0:00:00]} 2. b3 {[%emt 0:00:16]} Nf6 {[%emt 0:00:18]} 3. g3 {[%emt 0:01:34]} e6 {[%emt 0:00:15]} 4. Bg2 {[%emt 0:01:09]} Be7 {[%emt 0:00:07]} 5. O-O {[%emt 0:01:09]} O-O {[%emt 0:00:06]} 6. c4 {[%emt 0:01:29]} b6 {[%emt 0:00:14]} 7. cxd5 {[%emt 0:00:45]} Nxd5 {[%emt 0:00:04]} 8. d4 {[%emt 0:00:24]} Bb7 {[%emt 0:00:09]} 9. Bb2 {[%emt 0:00:56]} Nd7 {[%emt 0:00:17]} 10. Nbd2 {[%emt 0:00:34]} c5 {[%emt 0:00:36]} 11. e4 {[%emt 0:01:08]} Nb4 {[%emt 0:08:58]} 12. Qe2 {[%emt 0:01:01]} Nc2 {[%emt 0:08:33]} 13. Rad1 {[%emt 0:02:36]} Nxd4 {[%emt 0:00:57]} 14. Nxd4 {[%emt 0:00:21]} cxd4 {[%emt 0:00:03]} 15. Bxd4 {[%emt 0:00:06]} Rc8 {[%emt 0:04:43]} 16. Qg4 {[%emt 0:14:20]} g6 {[%emt 0:03:02]} 17. e5 {[%emt 0:07:56]} Bxg2 {[%emt 0:11:16]} 18. Kxg2 {[%emt 0:00:13]} Rc2 {[%emt 0:02:41]} 19. a4 {[%emt 0:02:33]} Qc7 {[%emt 0:04:40]} 20. Qe4 {[%emt 0:08:16]} Rc8 {[%emt 0:07:58]} 21. Nc4 {[%emt 0:03:37]} Qc6 {[%emt 0:03:08]} 22. Qxc6 {[%emt 0:07:56]} Rxc6 {[%emt 0:00:04]} 23. Rc1 {[%emt 0:00:52]} Rxc1 {[%emt 0:05:11]} 24. Rxc1 {[%emt 0:00:41]} a6 {[%emt 0:01:27]} 25. Rc2 {[%emt 0:06:48]} b5 {[%emt 0:05:39]} 26. axb5 {[%emt 0:00:11]} axb5 {[%emt 0:00:03]} 27. Ne3 {[%emt 0:00:12]} Rxc2 {[%emt 0:00:41]} 28. Nxc2 {[%emt 0:00:04]} Kf8 {[%emt 0:02:56]} 29. f4 {[%emt 0:02:10]} Ke8 {[%emt 0:02:03]} 30. Kf3 {[%emt 0:01:37]} Kd8 {[%emt 0:02:36]} 31. Be3 {[%emt 0:00:32]} Bc5 {[%emt 0:07:32]} 32. Bxc5 {[%emt 0:04:57]} Nxc5 {[%emt 0:00:04]} 33. b4 {[%emt 0:00:54]} Na6 {[%emt 0:01:55]} 34. Ke4 {[%emt 0:00:37]} Ke7 {[%emt 0:03:42]} 35. g4 {[%emt 0:00:30]} Nc7 {[%emt 0:02:51]} 36. h4 {[%emt 0:02:38]} h5 {[%emt 0:09:55]} 37. gxh5 {[%emt 0:04:05]} gxh5 {[%emt 0:00:04]} 38. f5 {[%emt 0:00:42]} f6 {[%emt 0:07:25]} 39. fxe6 {[%emt 0:11:45]} Nxe6 {[%emt 0:02:36]} 40. Kf5 {[%emt 0:05:02]} fxe5 {[%emt 0:00:09]} 41. Kxe5 {[%emt 0:50:05]} Nc7 {[%emt 0:14:33]} 42. Kf5 {[%emt 0:00:00]} Nd5 {[%emt 0:01:25]} 43. Kg5 {[%emt 0:00:00]} Kf7 {[%emt 0:06:09]} 44. Kxh5 {[%emt 0:00:00]} Kg7 {[%emt 0:00:03]} 45. Kg5 {[%emt 0:00:00]} Kh7 {[%emt 0:00:23]} 46. h5 {[%emt 0:00:00]} Kg7 {[%emt 0:00:04]} 47. h6+ {[%emt 0:00:00]} Kh7 {[%emt 0:00:03]} 48. Nd4 {[%emt 0:00:00]} Nxb4 {[%emt 0:00:16]} 49. Nxb5 {[%emt 0:00:00]} Nc6 {[%emt 0:02:02]} 50. Nd6 {[%emt 0:00:00]} Ne7 {[%emt 0:02:24]} 51. Ne4 {[%emt 0:00:00]} Ng8 {[%emt 0:00:06]} 52. Nf6+ {[%emt 0:00:00]} Nxf6 {[%emt 0:00:04]} 53. Kxf6 {[%emt 0:00:00]} Kxh6 {[%emt 0:00:05]} 1/2-1/2

[Event "FIDE Chesscom Grand Swiss 2019"]
[Site "Douglas-Isle of Man"]
[Date "2019.10.19"]
[Round "9.32"]
[White "Melkumyan, Hrant"]
[Black "Gukesh D"]
[Result "1/2-1/2"]
[ECO "D60"]
[WhiteElo "2650"]
[BlackElo "2520"]
[Annotator "ChessBase"]
[PlyCount "154"]
[EventDate "2019.10.10"]
[EventType "swiss"]
[EventCountry "GBR"]
[SourceTitle "playchess.com"]
[Source "ChessBase"]
[SourceQuality "1"]
[TimeControl "40/6000+30:20/3000+30:900+30"]

1. d4 {[%emt 0:00:00]} d5 {[%emt 0:00:06]} 2. c4 {[%emt 0:00:03]} e6 {[%emt 0:00:18]} 3. Nf3 {[%emt 0:00:14]} Nf6 {[%emt 0:00:11]} 4. Nc3 {[%emt 0:00:16]} Be7 {[%emt 0:00:40]} 5. Bg5 {[%emt 0:01:17]} O-O {[%emt 0:02:31]} 6. e3 {[%emt 0:00:49]} Nbd7 {[%emt 0:02:04]} 7. cxd5 {[%emt 0:06:18]} Nxd5 {[%emt 0:10:44]} 8. Bxe7 {[%emt 0:00:52]} Qxe7 {[%emt 0:03:33]} 9. Rc1 {[%emt 0:00:36]} Nxc3 {[%emt 0:11:13]} 10. Rxc3 {[%emt 0:01:41]} c5 {[%emt 0:07:19]} 11. Bd3 {[%emt 0:01:59]} cxd4 {[%emt 0:09:50]} 12. Nxd4 {[%emt 0:01:15]} Nf6 {[%emt 0:00:52]} 13. O-O {[%emt 0:04:20]} e5 {[%emt 0:08:15]} 14. Nf5 {[%emt 0:06:56]} Qd8 {[%emt 0:09:34]} 15. Qf3 {[%emt 0:12:58]} g6 {[%emt 0:06:08]} 16. Ng3 {[%emt 0:01:42]} Qe7 {[%emt 0:01:17]} 17. h3 {[%emt 0:15:29]} Be6 {[%emt 0:02:19]} 18. Rfc1 {[%emt 0:06:25]} Rac8 {[%emt 0:02:34]} 19. Ne4 {[%emt 0:03:03]} Nxe4 {[%emt 0:02:19]} 20. Qxe4 {[%emt 0:00:13]} Bf5 {[%emt 0:06:56]} 21. Qa4 {[%emt 0:00:28]} Qd7 {[%emt 0:04:09]} 22. Qxd7 {[%emt 0:02:23]} Bxd7 {[%emt 0:00:07]} 23. Be4 {[%emt 0:01:34]} b6 {[%emt 0:03:48]} 24. Rc7 {[%emt 0:00:46]} Be6 {[%emt 0:02:56]} 25. a3 {[%emt 0:01:18]} Rfd8 {[%emt 0:00:26]} 26. b4 {[%emt 0:04:50]} Kg7 {[%emt 0:05:50]} 27. R1c6 {[%emt 0:10:31]} Rxc7 {[%emt 0:00:52]} 28. Rxc7 {[%emt 0:00:04]} Rd7 {[%emt 0:02:03]} 29. Rc3 {[%emt 0:00:05]} Rd1+ {[%emt 0:01:15]} 30. Kh2 {[%emt 0:00:02]} Rd2 {[%emt 0:00:35]} 31. Kg3 {[%emt 0:00:12]} Kf6 {[%emt 0:02:21]} 32. h4 {[%emt 0:00:08]} Ke7 {[%emt 0:01:15]} 33. Bd3 {[%emt 0:05:07]} Kd6 {[%emt 0:01:23]} 34. Bb5 {[%emt 0:02:19]} Bd7 {[%emt 0:00:33]} 35. Ba6 {[%emt 0:00:17]} f5 {[%emt 0:00:22]} 36. Bd3 {[%emt 0:04:26]} Bc6 {[%emt 0:00:44]} 37. f3 {[%emt 0:01:42]} Bd7 {[%emt 0:00:30]} 38. Bc4 {[%emt 0:00:51]} h6 {[%emt 0:00:22]} 39. f4 {[%emt 0:01:43]} exf4+ {[%emt 0:00:39]} 40. exf4 {[%emt 0:00:03]} Bc6 {[%emt 0:00:12]} 41. Rd3+ {[%emt 0:50:45]} Rxd3+ {[%emt 0:50:07]} 42. Bxd3 {[%emt 0:00:03]} Ke6 {[%emt 0:00:00]} 43. Kf2 {[%emt 0:00:00]} Kf6 {[%emt 0:00:00]} 44. g3 {[%emt 0:00:00]} g5 {[%emt 0:00:00]} 45. Ke3 {[%emt 0:00:00]} gxh4 {[%emt 0:00:00]} 46. gxh4 {[%emt 0:00:00]} Ke6 {[%emt 0:00:00]} 47. Kd4 {[%emt 0:00:00]} Bd7 {[%emt 0:00:00]} 48. Kc4 {[%emt 0:00:00]} Kd6 {[%emt 0:00:00]} 49. Bc2 {[%emt 0:00:00]} Ke6 {[%emt 0:00:00]} 50. a4 {[%emt 0:00:00]} Kd6 {[%emt 0:00:00]} 51. a5 {[%emt 0:00:00]} Ke6 {[%emt 0:00:00]} 52. Bd1 {[%emt 0:00:00]} Kd6 {[%emt 0:00:00]} 53. Bf3 {[%emt 0:00:00]} Ke6 {[%emt 0:00:00]} 54. Bh1 {[%emt 0:00:00]} Kd6 {[%emt 0:00:00]} 55. Bb7 {[%emt 0:00:00]} Kc7 {[%emt 0:00:00]} 56. Ba6 {[%emt 0:00:00]} Kd6 {[%emt 0:00:00]} 57. Bb5 {[%emt 0:00:00]} Be6+ {[%emt 0:00:36]} 58. Kd4 {[%emt 0:00:00]} Bc8 {[%emt 0:00:38]} 59. Ba4 {[%emt 0:00:00]} Be6 {[%emt 0:01:27]} 60. Be8 {[%emt 0:00:00]} Bc8 {[%emt 0:00:44]} 61. Bf7 {[%emt 0:00:00]} Bd7 {[%emt 0:17:53]} 62. Kc4 {[%emt 0:00:00]} Kc6 {[%emt 0:01:36]} 63. Bh5 {[%emt 0:00:00]} Be6+ {[%emt 0:01:38]} 64. Kd4 {[%emt 0:00:00]} Kd6 {[%emt 0:00:05]} 65. Bd1 {[%emt 0:00:00]} Bc8 {[%emt 0:01:02]} 66. Bc2 {[%emt 0:00:00]} Be6 {[%emt 0:00:27]} 67. Ba4 {[%emt 0:00:08]} Bc8 {[%emt 0:00:21]} 68. Bb5 {[%emt 0:00:14]} Be6 {[%emt 0:00:57]} 69. Ba6 {[%emt 0:00:06]} Bd7 {[%emt 0:00:35]} 70. Bb7 {[%emt 0:00:07]} Be6 {[%emt 0:00:38]} 71. Ba8 {[%emt 0:00:06]} Bc8 {[%emt 0:00:48]} 72. Bd5 {[%emt 0:01:18]} Bd7 {[%emt 0:00:29]} 73. Ba2 {[%emt 0:00:12]} Bc8 {[%emt 0:00:21]} 74. Bg8 {[%emt 0:00:06]} Bd7 {[%emt 0:00:21]} 75. Kc4 {[%emt 0:00:04]} Kc6 {[%emt 0:00:19]} 76. Bd5+ {[%emt 0:01:59]} Kd6 {[%emt 0:00:08]} 77. Bf3 {[%emt 0:00:51]} Ke6 {[%emt 0:00:20]} 1/2-1/2

[Event "FIDE Chesscom Grand Swiss 2019"]
[Site "Douglas-Isle of Man"]
[Date "2019.10.19"]
[Round "9.32"]
[White "Henderson de La Fuente, Lance"]
[Black "Gavrilescu, David"]
[Result "1-0"]
[ECO "C07"]
[WhiteElo "2494"]
[BlackElo "2451"]
[Annotator "ChessBase"]
[PlyCount "101"]
[EventDate "2019.10.10"]
[EventType "swiss"]
[EventCountry "GBR"]
[SourceTitle "playchess.com"]
[Source "ChessBase"]
[SourceQuality "1"]
[TimeControl "40/6000+30:20/3000+30:900+30"]

1. e4 {[%emt 0:00:00]} e6 {[%emt 0:00:04]} 2. d4 {[%emt 0:00:00]} d5 {[%emt 0:00:27]} 3. Nd2 {[%emt 0:00:21]} c5 {[%emt 0:00:50]} 4. Ngf3 {[%emt 0:00:40]} cxd4 {[%emt 0:00:40]} 5. Nxd4 {[%emt 0:00:24]} Nc6 {[%emt 0:00:55]} 6. Bb5 {[%emt 0:01:18]} Bd7 {[%emt 0:00:37]} 7. Nxc6 {[%emt 0:00:41]} bxc6 {[%emt 0:00:45]} 8. Bd3 {[%emt 0:00:09]} Qc7 {[%emt 0:00:24]} 9. Qe2 {[%emt 0:01:08]} Ne7 {[%emt 0:00:44]} 10. O-O {[%emt 0:00:32]} Ng6 {[%emt 0:00:22]} 11. Nf3 {[%emt 0:00:31]} Be7 {[%emt 0:00:24]} 12. e5 {[%emt 0:04:44]} c5 {[%emt 0:01:10]} 13. c3 {[%emt 0:02:43]} h6 {[%emt 0:00:55]} 14. h4 {[%emt 0:11:24]} Nxh4 {[%emt 0:14:14]} 15. Nxh4 {[%emt 0:00:10]} Bxh4 {[%emt 0:00:07]} 16. Qg4 {[%emt 0:00:09]} c4 {[%emt 0:01:00]} 17. Bc2 {[%emt 0:02:17]} Bg5 {[%emt 0:03:04]} 18. f4 {[%emt 0:02:02]} Be7 {[%emt 0:08:09]} 19. Qxg7 {[%emt 0:00:36]} Bc5+ {[%emt 0:00:56]} 20. Kh2 {[%emt 0:01:10]} O-O-O {[%emt 0:00:14]} 21. Qxf7 {[%emt 0:03:08]} h5 {[%emt 0:06:32]} 22. b4 {[%emt 0:32:45]} Rdf8 {[%emt 0:12:44]} 23. Qg7 {[%emt 0:01:02]} Rhg8 {[%emt 0:01:08]} 24. Qh7 {[%emt 0:01:09]} Bb6 {[%emt 0:09:14]} 25. Qe7 {[%emt 0:01:55]} Re8 {[%emt 0:14:45]} 26. Qf6 {[%emt 0:00:40]} Bc6 {[%emt 0:02:53]} 27. Bg6 {[%emt 0:10:00]} Ref8 {[%emt 0:12:41]} 28. Qxe6+ {[%emt 0:00:25]} Bd7 {[%emt 0:00:09]} 29. Qe7 {[%emt 0:00:14]} Qc6 {[%emt 0:00:43]} 30. f5 {[%emt 0:02:11]} Bd8 {[%emt 0:04:50]} 31. b5 {[%emt 0:02:25]} Qb6 {[%emt 0:08:27]} 32. Qa3 {[%emt 0:01:38]} Bc7 {[%emt 0:01:17]} 33. Qe7 {[%emt 0:03:16]} Bd8 {[%emt 0:00:19]} 34. Qa3 {[%emt 0:01:38]} Bc7 {[%emt 0:00:13]} 35. Bg5 {[%emt 0:04:16]} Bxe5+ {[%emt 0:01:31]} 36. Kh1 {[%emt 0:00:01]} Bd6 {[%emt 0:00:37]} 37. Qc1 {[%emt 0:01:06]} h4 {[%emt 0:03:21]} 38. Qd2 {[%emt 0:07:08]} Qb7 {[%emt 0:00:33]} 39. Rad1 {[%emt 0:01:54]} Kc7 {[%emt 0:00:56]} 40. Bh6 {[%emt 0:04:33]} Rf6 {[%emt 0:00:29]} 41. Qd4 {[%emt 0:52:05]} Rfxg6 {[%emt 0:12:03]} 42. fxg6 {[%emt 0:00:00]} Rxg6 {[%emt 0:00:14]} 43. Bf4 {[%emt 0:00:00]} h3 {[%emt 0:07:21]} 44. Bxd6+ {[%emt 0:00:00]} Kxd6 {[%emt 0:01:43]} 45. Rf6+ {[%emt 0:00:00]} Rxf6 {[%emt 0:02:58]} 46. Qxf6+ {[%emt 0:00:00]} Kc5 {[%emt 0:02:37]} 47. Qe7+ {[%emt 0:00:00]} Kb6 {[%emt 0:00:06]} 48. Qd6+ {[%emt 0:00:00]} Ka5 {[%emt 0:00:05]} 49. Rxd5 {[%emt 0:00:00]} hxg2+ {[%emt 0:01:59]} 50. Kg1 {[%emt 0:00:00]} Bxb5 {[%emt 0:01:06]} 51. a4 {[%emt 0:00:00]} 1-0